bitfinex-derivatives/quotes_ETHF0:USTF0_20250212
["timestamp","ask_amount","ask_price","bid_price","bid_amount"]
[1739396680458,0.00557745,2692.5,2692.4,3.95059]
[1739396681562,0.00557745,2692.5,2692.4,4.49759]
[1739396688163,0.74273,2692.7,2692.6,0.74269]
[1739396688357,0.7427,2692.8,2692.7,0.74267]
[1739396689565,0.58357745,2693.0,2692.4,3.7548]
[1739396689767,0.74268,2692.9,2692.8,0.74266]
[1739396690267,1.32621745,2693.0,2692.9,0.74266]
[1739396690467,0.74268,2692.9,2692.8,0.74267]
[1739396691165,0.74268,2692.9,2692.8,0.74268]
[1739396691667,0.7427,2692.8,2692.7,0.74267]
[1739396692768,1.32622745,2693.0,2692.9,0.74266]
[1739396693772,0.58357745,2693.0,2692.9,0.74266]
[1739396693959,0.58357745,2693.0,2692.9,10.01162127]
[1739396693960,0.00557745,2693.0,2692.9,10.01162127]
[1739396694163,3.9503,2693.5,2693.4,0.74252]
[1739396694673,3.2078,2693.5,2693.4,0.74252]
[1739396695863,0.74684323,2693.6,2693.5,0.74249]
[1739396696563,0.00436323,2693.6,2693.5,0.74249]
[1739396702968,3.2078,2694.2,2693.4,7.04256127]
[1739396703165,0.74234,2694.1,2694.0,0.74233]
[1739396703571,3.95012,2694.2,2694.1,0.74233]
[1739396703773,3.2078,2694.2,2694.1,0.74233]
[1739396704069,0.5884,2694.3,2694.0,3.2078]
[1739396704267,3.2078,2694.6,2694.1,1.85582]
[1739396704268,3.7962,2694.6,2694.1,1.85582]
[1739396704468,0.5884,2694.6,2694.5,0.74222]
[1739396704864,0.74218,2694.7,2694.3,3.2078]
[1739396705065,0.74215,2694.8,2694.7,0.74215]
[1739396705267,4.53832,2694.9,2694.7,0.74215]
[1739396705463,3.7962,2694.9,2694.7,0.74215]
[1739396705667,4.53832,2694.9,2694.7,0.74215]
[1739396705868,1.33052,2694.9,2694.7,0.74215]
[1739396706063,0.74213,2694.8,2694.7,0.74215]
[1739396706370,2.236,2695.4,2695.0,0.74207]
[1739396706570,1.96715173,2695.3,2695.0,0.74207]
[1739396706869,1.96715173,2695.3,2694.5,2.44135]
[1739396706870,3.2078,2695.5,2694.9,3.21336679]
[1739396707073,0.5881,2695.7,2695.2,6.47676127]
[1739396707678,0.5881,2695.7,2695.4,0.74195]
[1739396708472,0.74188,2695.8,2695.4,0.74195]
[1739396708668,2.38784,2695.9,2695.2,6.47676127]
[1739396708971,0.74185,2695.9,2695.2,6.47676127]
[1739396709169,3.2078,2696.0,2695.2,6.47676127]
[1739396709377,0.74186,2695.8,2695.5,3.26896127]
[1739396709574,3.2078,2696.0,2695.5,3.26896127]
[1739396709877,0.74183,2695.9,2695.6,0.7419]
[1739396710370,0.7419,2695.7,2695.5,3.26896127]
[1739396710570,3.2078,2695.6,2695.0,1.1535]
[1739396710764,3.26896127,2695.9,2695.1,3.39199333]
[1739396710969,0.74194,2695.5,2695.1,3.2078]
[1739396711573,1.645,2695.8,2695.2,0.742]
[1739396711873,0.74208,2695.0,2694.9,0.00556679]
[1739396712075,3.94988,2695.0,2694.9,0.00556679]
[1739396712375,7.28017876,2695.0,2694.9,0.00556679]
[1739396712573,7.28018026,2695.0,2694.9,0.00556679]
[1739396712768,4.01121899,2695.0,2694.9,0.00556679]
[1739396712974,0.74208,2695.0,2694.9,0.00556679]
[1739396713675,0.80341903,2695.0,2694.9,0.00556679]
[1739396713870,0.8034187,2695.0,2694.9,0.00556679]
[1739396714477,0.74208,2695.0,2694.9,0.00556679]
[1739396715487,3.49031,2695.3,2695.0,0.74206]
[1739396715780,3.49032,2695.3,2694.9,3.21336679]
[1739396715980,2.1935,2695.3,2694.9,3.21336679]
[1739396716181,2.93551,2695.3,2694.9,3.21336679]
[1739396716482,1.648,2695.6,2694.9,3.21336679]
[1739396716683,0.74201,2695.3,2695.1,0.74205]
[1739396717279,2.2157,2695.6,2694.9,3.21336679]
[1739396717582,0.74199,2695.4,2695.2,0.74201]
[1739396717781,0.742,2695.3,2694.9,6.99709646]
[1739396717983,0.742,2695.3,2695.1,0.74203]
[1739396718283,0.74197,2695.4,2695.2,0.74202]
[1739396718486,0.5677,2695.6,2695.3,0.74199]
[1739396718679,1.30962,2695.6,2695.4,0.74196]
[1739396718874,0.5677,2695.6,2695.5,0.74194]
[1739396719082,1.30961,2695.6,2695.5,0.74194]
[1739396719279,0.5677,2695.6,2695.3,0.5961]
[1739396719474,0.74195,2695.5,2695.4,0.74196]
[1739396720278,0.5677,2695.6,2695.3,0.5961]
[1739396720484,0.74193,2695.6,2695.5,0.74194]
[1739396720782,3.2078,2695.8,2695.3,0.5961]
[1739396720996,0.74197,2695.4,2695.3,0.5961]
[1739396721183,0.742,2695.3,2695.2,3.94981]
[1739396721383,0.742,2695.3,2695.2,3.94982]
[1739396721687,0.74204,2695.2,2695.1,0.74204]
[1739396722275,0.74205,2695.2,2695.1,0.74204]
[1739396722679,4.8568,2695.5,2694.9,3.81586679]
[1739396722990,0.74205,2695.2,2695.1,0.74205]
[1739396723784,6.71169,2695.5,2695.1,0.74204]
[1739396723982,0.74202,2695.3,2695.2,0.74202]
[1739396724383,0.74199,2695.4,2695.3,0.74198]
[1739396726787,0.74196,2695.5,2695.4,0.74195]
[1739396726987,0.742,2695.4,2695.3,0.74198]
[1739396729088,0.74203,2695.3,2695.2,0.742]
[1739396730083,1.85487,2695.5,2694.9,3.81586679]
[1739396730288,0.74208,2695.0,2694.9,0.00556679]
[1739396733200,1.647,2695.4,2694.9,0.00556679]
[1739396733498,1.647,2695.4,2694.9,0.59706679]
[1739396733693,2.2398,2695.4,2695.1,0.74204]
[1739396733894,0.74202,2695.2,2695.1,0.74204]
[1739396734402,2.2398,2695.4,2695.2,0.74201]
[1739396734403,0.742,2695.3,2695.2,0.74201]
[1739396734595,1.33478,2695.4,2695.3,0.742]
[1739396735499,0.74202,2695.3,2695.2,0.742]
[1739396737297,0.5928,2695.4,2694.9,0.59706679]
[1739396737495,0.5928,2695.4,2694.9,0.00556679]
[1739396737699,0.74208,2695.0,2694.9,0.00556679]
[1739396741993,0.80342169,2695.0,2694.9,0.00556679]
[1739396742702,0.80342247,2695.0,2694.9,0.00556679]
[1739396744404,0.06134247,2695.0,2694.3,0.74225]
[1739396744600,1.85548,2694.6,2694.1,1.4996578]
[1739396744805,0.74234,2694.1,2694.0,0.74234]
[1739396744995,0.74234,2694.1,2694.0,1.31659605]
[1739396745195,0.74234,2694.1,2694.0,0.57425605]
[1739396745500,1.85564,2694.4,2693.9,4.24366869]
[1739396745701,0.74235,2694.0,2693.9,4.24366869]
[1739396746006,0.74238,2693.9,2693.8,0.00556679]
[1739396750707,0.74251,2693.5,2693.3,0.74254]
[1739396751205,1.655,2693.6,2693.3,0.74254]
[1739396751395,1.655,2693.6,2693.2,0.5483]
[1739396751595,0.7425,2693.5,2693.2,0.5483]
[1739396752197,0.7425,2693.5,2693.3,0.74252]
[1739396752402,1.655,2693.6,2693.3,0.29581234]
[1739396752601,3.2078,2693.8,2693.3,3.78148388]
[1739396752802,5.60322,2693.8,2693.6,0.74244]
[1739396754200,4.8608,2693.8,2693.4,0.5937]
[1739396754398,4.8608,2693.8,2693.2,0.5483]
[1739396754599,0.74249,2693.6,2693.2,0.5483]
[1739396754799,0.74249,2693.6,2693.4,0.74249]
[1739396755205,4.8608,2693.8,2693.2,0.5483]
[1739396755405,0.74247,2693.6,2693.5,0.74248]
[1739396756104,4.8608,2693.8,2693.2,0.85152999]
[1739396756300,0.74253,2693.4,2693.3,0.74254]
[1739396756696,0.74244,2693.7,2693.3,0.74254]
[1739396757002,0.7425,2693.5,2693.4,0.74252]
[1739396757304,0.74252,2693.4,2693.3,0.74253]
[1739396757905,0.74253,2693.4,2693.3,0.74254]
[1739396759701,1.1676,2693.5,2693.1,6.46766264]
[1739396759899,1.652,2693.4,2693.3,0.74255]
[1739396760101,3.2078,2693.8,2693.3,3.25429585]
[1739396760408,3.95021,2693.8,2693.7,0.74244]
[1739396760703,1.7509,2694.0,2693.6,3.25429585]
[1739396760906,2.39538,2693.9,2693.8,0.74239]
[1739396761096,1.653,2693.9,2693.6,3.25429585]
[1739396761299,0.74244,2693.7,2693.6,3.99673585]
[1739396761900,2.39539,2693.9,2693.8,0.74241]
[1739396762297,2.8187,2694.0,2693.6,3.25429585]
[1739396762498,0.00553125,2694.3,2694.2,0.7423]
[1739396762708,0.00553125,2694.3,2694.2,3.99659585]
[1739396764805,0.00553125,2694.3,2694.2,0.7423]
[1739396765302,0.74233,2694.1,2694.0,3.95014]
[1739396766012,0.00553125,2694.3,2694.2,0.7423]
[1739396766501,0.00553125,2694.3,2694.2,3.99659585]
[1739396766711,1.658,2694.8,2694.7,0.74216]
[1739396766905,0.74212,2694.9,2694.8,0.74213]
[1739396767105,3.7758,2695.0,2694.6,0.5513]
[1739396767303,3.2078,2695.0,2694.6,0.5513]
[1739396767507,3.2078,2695.0,2694.9,0.74211]
[1739396767908,0.74208,2695.0,2694.9,0.74211]
[1739396768307,0.74211,2694.9,2694.8,0.74212]
[1739396768611,0.00556679,2695.1,2694.6,1.1238]
[1739396769007,0.74763679,2695.1,2694.9,0.74208]
[1739396769204,0.74763679,2695.1,2695.0,0.74208]
[1739396769609,0.00556679,2695.1,2694.6,1.1238]
[1739396770011,0.74215,2694.8,2694.7,0.74215]
[1739396770208,0.00556679,2695.1,2694.6,0.5513]
[1739396770506,0.74216,2694.7,2694.5,0.74775679]
[1739396770712,1.1458,2694.6,2694.5,0.74775679]
[1739396770909,1.88799,2694.6,2694.5,0.74775679]
[1739396771209,1.1458,2694.6,2694.5,0.74775679]
[1739396771411,1.88799,2694.6,2694.5,0.00556679]
[1739396771716,0.74232,2694.2,2694.0,0.74233]
[1739396772010,1.30073,2694.1,2694.0,0.74233]
[1739396772313,0.5584,2694.1,2694.0,0.74233]
[1739396772607,0.5584,2694.1,2693.6,3.2078]
[1739396772808,0.74248,2693.6,2693.4,0.5832]
[1739396773006,0.74249,2693.5,2693.4,0.5832]
[1739396773202,0.5783,2693.6,2693.2,0.74813679]
[1739396773408,0.74252,2693.4,2693.2,0.00556679]
[1739396773607,0.5783,2693.6,2693.2,0.00556679]
[1739396773803,0.74254,2693.4,2693.2,0.00556679]
[1739396774316,0.5783,2693.6,2693.2,0.00556679]
[1739396774615,0.74255,2693.4,2693.2,0.00556679]
[1739396775110,0.5783,2693.6,2693.2,0.00556679]
[1739396775311,0.74255,2693.3,2693.2,0.00556679]
[1739396775910,2.40755,2693.3,2693.2,0.00556679]
[1739396776518,3.04573162,2693.3,2693.2,0.00556679]
[1739396777211,3.04573105,2693.3,2693.2,0.00556679]
[1739396777918,0.74267,2692.9,2692.7,3.95051]
[1739396778418,2.4067,2692.8,2692.5,1.31345]
[1739396778625,2.4067,2692.8,2692.5,1.31346]
[1739396778918,0.74272,2692.7,2692.5,1.31346]
[1739396779114,1.664,2692.8,2692.4,3.21336679]
[1739396779815,0.74275,2692.6,2692.4,3.95615679]
[1739396780116,0.74277,2692.5,2692.4,3.21336679]
[1739396780815,0.74277,2692.5,2692.4,0.00556679]
[1739396781317,4.01197119,2692.5,2692.4,0.00556679]
[1739396781715,0.74288,2692.1,2692.0,3.2078]
[1739396782021,2.40788,2692.1,2692.0,3.2078]
[1739396783214,2.40788,2692.1,2692.0,3.9507]
[1739396783616,2.40788,2692.1,2692.0,3.2078]
[1739396784019,1.665,2692.1,2691.8,0.00556679]
[1739396784323,0.74293,2691.9,2691.8,0.00556679]
[1739396784927,1.30633,2691.9,2691.8,0.00556679]
[1739396785521,4.51413,2691.9,2691.8,0.00556679]
[1739396786023,9.83261642,2691.9,2691.0,0.5691]
[1739396786225,3.2078,2691.5,2691.0,1.31226]
[1739396786523,1.33838,2691.4,2691.2,0.74311]
[1739396786923,0.5953,2691.4,2691.0,0.5691]
[1739396787225,0.74311,2691.3,2691.1,0.74315]
[1739396787619,0.74311,2691.3,2691.0,0.57466679]
[1739396788022,0.5953,2691.4,2691.0,0.57466679]
[1739396788321,0.5953,2691.4,2691.1,0.74314]
[1739396788621,0.74312,2691.3,2691.1,0.74313]
[1739396789025,0.74315,2691.1,2691.0,0.74873679]
[1739396789221,0.74315,2691.1,2691.0,0.00556679]
[1739396794229,2.41015,2691.1,2691.0,0.00556679]
[1739396794431,2.41015,2691.1,2691.0,0.74874679]
[1739396794927,2.41015,2691.1,2691.0,0.00556679]
[1739396795129,0.74315,2691.1,2691.0,0.00556679]
[1739396795433,2.41015,2691.1,2691.0,0.00556679]
[1739396795626,5.61795,2691.1,2691.0,0.00556679]
[1739396796731,5.67938964,2691.1,2691.0,0.00556679]
[1739396797839,5.61795,2691.1,2691.0,0.00556679]
[1739396798033,5.67939136,2691.1,2691.0,0.00556679]
[1739396798338,0.74335,2690.4,2690.3,0.5666]
[1739396798532,2.40935,2690.4,2690.3,0.5666]
[1739396798831,0.7434,2690.3,2690.1,3.95122]
[1739396799227,1.666,2690.4,2690.1,3.95122]
[1739396799434,0.74338,2690.3,2690.2,0.74339]
[1739396799832,1.666,2690.4,2690.1,3.2078]
[1739396800039,0.74339,2690.3,2690.2,0.74339]
[1739396800635,2.40937,2690.4,2690.3,0.74337]
[1739396800835,0.74338,2690.3,2690.2,0.74339]
[1739396801034,0.74338,2690.3,2690.1,3.2078]
[1739396801035,1.666,2690.4,2690.1,3.2078]
[1739396801338,0.74345,2690.1,2690.0,0.74345]
[1739396801634,0.74346,2690.0,2689.9,1.3465912]
[1739396802241,0.74346,2690.0,2689.9,0.6031112]
[1739396802634,0.74346,2690.0,2689.9,0.0037112]
[1739396807535,0.06146688,2690.0,2689.3,0.576]
[1739396807737,0.74362,2689.4,2689.3,0.576]
[1739396807938,2.41062,2689.4,2689.3,0.576]
[1739396808539,0.74372,2689.1,2689.0,0.74372]
[1739396808738,0.74373,2689.0,2688.9,0.5606]
[1739396809646,1.669,2689.0,2688.9,1.30435]
[1739396809845,0.74372,2689.1,2688.9,0.5606]
[1739396810043,0.74372,2689.1,2689.0,0.74373]
[1739396810245,2.41272,2689.1,2689.0,0.74373]
[1739396810651,1.669,2689.1,2689.0,0.74373]
[1739396810943,2.41271,2689.1,2689.0,0.74373]
[1739396812246,4.8758,2689.7,2689.0,3.26113152]
[1739396812445,0.74364,2689.4,2689.3,0.74362]
[1739396812848,0.74368,2689.2,2689.1,3.95149]
[1739396813249,0.74373,2689.0,2688.9,0.5606]
[1739396813754,0.74376,2688.9,2688.8,0.74377]
[1739396814654,0.00557756,2689.1,2688.6,4.3428]
[1739396814952,0.74929756,2689.1,2689.0,0.74373]
[1739396816650,0.00557756,2689.1,2688.7,3.26113152]
[1739396816853,0.74379,2688.9,2688.8,0.74377]
[1739396818149,0.74931756,2689.1,2689.0,0.74373]
[1739396818356,0.74377,2689.0,2688.9,0.74375]
[1739396819353,0.74379,2688.9,2688.8,0.74377]
[1739396821551,0.5529,2689.0,2688.6,3.2078]
[1739396821752,0.74374,2689.0,2688.9,0.74376]
[1739396822154,0.00557756,2689.1,2689.0,0.74373]
[1739396822350,0.74928756,2689.1,2689.0,1.91823]
[1739396822956,0.74928756,2689.1,2689.0,1.32853]
[1739396823156,0.74928756,2689.1,2689.0,0.74373]
[1739396827365,0.74373,2689.0,2688.9,3.95154]
[1739396827765,4.92813152,2689.0,2688.6,4.3823]
[1739396827963,0.74386,2688.6,2688.5,0.74385]
[1739396828466,2.43461,2688.9,2688.3,4.3578]
[1739396828467,0.7439,2688.5,2688.4,0.74387]
[1739396828663,0.7439,2688.4,2688.3,3.2078]
[1739396828865,0.7439,2688.4,2687.9,6.90657676]
[1739396828866,4.8748,2688.5,2688.0,3.2078]
[1739396829064,0.74398,2688.1,2688.0,3.9518]
[1739396829555,1.1476,2688.4,2688.0,3.2078]
[1739396829761,1.668,2688.3,2688.0,3.2078]
[1739396829970,2.41194,2688.3,2688.2,0.74396]
[1739396830568,1.668,2688.3,2688.2,0.74396]
[1739396830763,3.2078,2688.8,2688.1,3.26113152]
[1739396830961,2.41183,2688.7,2688.6,0.74383]
[1739396831157,1.86488756,2689.1,2688.6,0.74383]
[1739396831158,0.00557756,2689.1,2688.6,3.2078]
[1739396831354,0.00557756,2689.1,2689.0,0.74373]
[1739396832666,0.74928756,2689.1,2689.0,0.74373]
[1739396833762,0.74373,2689.0,2688.9,3.2078]
[1739396833963,0.74378,2688.9,2688.8,0.74379]
[1739396834368,0.74374,2689.0,2688.9,0.74375]
[1739396834562,0.00557756,2689.1,2688.7,0.558]
[1739396834769,0.00134629,2689.1,2689.0,0.74373]
[1739396837765,0.00134629,2689.1,2689.0,1.29524972]
[1739396838272,0.00134629,2689.1,2689.0,0.74373]
[1739396839065,2.90885757,2689.9,2689.0,6.0]
[1739396839271,3.65235757,2689.9,2689.8,0.74351]
[1739396839976,2.90885757,2689.9,2689.6,0.5657]
[1739396840177,0.74353,2689.8,2689.7,1.33552]
[1739396840374,0.74353,2689.8,2689.7,1.33554]
[1739396840579,0.74355,2689.7,2689.6,0.74355]
[1739396841480,2.90885757,2689.9,2689.5,3.2078]
[1739396841677,0.74355,2689.7,2689.6,0.74355]
[1739396842283,2.90885757,2689.9,2689.5,3.2078]
[1739396842578,0.74357,2689.6,2689.5,3.95139]
[1739396843682,2.90885757,2689.9,2689.7,0.74352]
[1739396843683,0.74353,2689.8,2689.7,0.74352]
[1739396844081,0.74357,2689.7,2689.6,0.74355]
[1739396845080,1.666,2689.8,2689.7,0.74354]
[1739396845286,1.13107756,2690.1,2689.5,3.2078]
[1739396845488,0.55647756,2690.1,2690.0,3.95126]
[1739396845983,0.00557756,2690.1,2690.0,3.95126]
[1739396849088,0.7433,2690.6,2690.0,3.2078]
[1739396849278,3.95109,2690.7,2690.6,0.74329]
[1739396849583,3.2078,2690.7,2690.3,3.2078]
[1739396849787,0.7433,2690.6,2690.5,0.74329]
[1739396850583,3.2078,2690.7,2690.4,0.74333]
[1739396850783,1.1873,2690.5,2690.4,0.74333]
[1739396851092,0.74335,2690.4,2690.3,3.95673756]
[1739396851284,0.74335,2690.4,2690.3,0.74894756]
[1739396851583,0.74335,2690.4,2690.3,0.00557756]
[1739396851979,0.74335,2690.4,2690.3,0.74894756]
[1739396852176,1.1873,2690.5,2690.3,0.00557756]
[1739396852382,1.1873,2690.5,2690.4,0.74335]
[1739396852583,0.5972,2690.5,2690.4,0.74335]
[1739396852782,0.74331,2690.6,2690.5,0.74332]
[1739396853484,0.74329,2690.7,2690.6,0.74329]
[1739396854892,0.74881756,2690.8,2690.7,0.74326]
[1739396855292,0.00557756,2690.8,2690.7,0.74326]
[1739396856184,0.74881756,2690.8,2690.7,0.74326]
[1739396857987,0.00557756,2690.8,2690.7,0.74326]
[1739396858189,0.74881756,2690.8,2690.7,0.74326]
[1739396860994,0.00557756,2690.8,2690.7,4.00439152]
[1739396862296,0.00557756,2690.8,2690.7,10.00439152]
[1739396862596,1.87869,2691.5,2691.4,0.74307]
[1739396863495,1.1356,2691.5,2691.1,3.95093]
[1739396863796,0.74318,2691.1,2691.0,0.74317]
[1739396865289,0.5964,2691.3,2690.7,3.2078]
[1739396865496,0.5744,2691.0,2690.7,3.2078]
[1739396865798,0.5982,2690.9,2690.8,0.74324]
[1739396869392,0.5964,2691.3,2691.2,0.74313]
[1739396869605,0.74307,2691.4,2691.2,3.2078]
[1739396869899,0.74307,2691.4,2691.3,0.7431]
[1739396870198,1.655,2691.5,2691.2,3.2078]
[1739396870501,0.74314,2691.3,2691.2,0.7431]
[1739396871095,4.8628,2691.5,2690.9,3.2078]
[1739396871401,0.74318,2691.1,2691.0,0.74317]
[1739396871698,0.74315,2691.2,2691.1,0.74312]
[1739396871893,5.06553,2691.4,2690.9,3.2078]
[1739396872092,1.34638,2691.1,2691.0,0.74316]
[1739396873502,0.6032,2691.1,2691.0,0.74316]
[1739396873902,1.34635,2691.1,2691.0,0.74316]
[1739396877102,0.74318,2691.0,2690.9,3.95098]
[1739396877307,1.34637,2691.1,2691.0,0.74318]
[1739396877602,1.2026,2691.6,2691.0,3.26113152]
[1739396877804,0.6038,2691.6,2691.5,0.74304]
[1739396877995,1.34682,2691.6,2691.5,0.74304]
[1739396878595,0.6038,2691.6,2691.3,3.2078]
[1739396878902,0.74307,2691.5,2691.4,0.74304]
[1739396879603,0.00557756,2691.7,2691.3,3.2078]
[1739396879907,0.74303,2691.6,2691.5,0.74302]
[1739396880798,0.74857756,2691.7,2691.6,0.74302]
[1739396881896,0.00557756,2691.7,2691.6,0.74302]
[1739396882203,0.00557756,2691.7,2691.6,3.95082]
[1739396883201,0.00557756,2691.7,2691.3,6.46893152]
[1739396883401,0.74302,2691.6,2691.5,0.74302]
[1739396883602,0.00557756,2691.7,2691.6,0.74302]
[1739396883808,0.74856756,2691.7,2691.6,0.74302]
[1739396885007,0.00557756,2691.7,2691.6,0.74302]
[1739396886003,0.74856756,2691.7,2691.6,0.74302]
[1739396887900,0.00557756,2691.7,2691.3,3.2078]
[1739396888099,0.00557756,2691.7,2691.1,3.95094]
[1739396888100,0.74313,2691.2,2691.1,3.95094]
[1739396888402,0.74317,2691.1,2691.0,0.74314]
[1739396889304,0.7432,2691.0,2690.9,0.74319]
[1739396889707,0.74317,2691.1,2691.0,0.74316]
[1739396889909,1.648,2691.4,2690.7,3.55764302]
[1739396890106,1.648,2691.4,2690.9,3.2078]
[1739396890311,0.74318,2691.1,2691.0,0.74316]
[1739396893506,0.74318,2691.0,2690.9,3.951]
[1739396894615,4.8558,2691.4,2690.9,3.2078]
[1739396894803,0.74318,2691.1,2691.0,0.74315]
[1739396895410,0.74312,2691.3,2691.2,0.74309]
[1739396895613,2.39112,2691.3,2691.2,0.74309]
[1739396895809,1.648,2691.3,2691.2,0.74309]
[1739396896206,0.74307,2691.5,2691.4,0.74304]
[1739396896610,0.00557756,2691.7,2691.6,0.74302]
[1739396896811,0.00557756,2691.7,2691.6,3.95082]
[1739396897007,0.00557756,2691.7,2691.6,7.21195152]
[1739396899905,0.74856756,2691.7,2691.6,7.21195152]
[1739396900108,0.74856756,2691.7,2691.6,3.95082]
[1739396901318,0.74856756,2691.7,2691.6,3.2078]
[1739396901618,0.74856756,2691.7,2691.6,3.95082]
[1739396903514,0.74856756,2691.7,2691.6,3.2078]
[1739396903719,0.74856756,2691.7,2691.4,0.74305]
[1739396903720,0.74307,2691.5,2691.4,0.74305]
[1739396904512,0.00557756,2691.7,2691.2,5.06561]
[1739396904714,0.74303,2691.6,2691.5,0.74302]
[1739396905411,0.00557756,2691.7,2691.2,5.06561]
[1739396905612,0.74307,2691.5,2691.4,0.74305]
[1739396907423,0.74303,2691.6,2691.5,0.74302]
[1739396911921,2.39103,2691.6,2691.5,0.74302]
[1739396912419,0.74857756,2691.7,2691.6,0.74301]
[1739396913222,0.00557756,2691.7,2691.6,0.74301]
[1739396915626,0.00557756,2691.7,2691.6,4.00414152]
[1739396916822,0.74856756,2691.7,2691.6,0.74301]
[1739396917031,0.00557756,2691.7,2691.6,0.74301]
[1739396918618,0.59807756,2691.7,2691.6,0.74301]
[1739396919226,0.00557756,2691.7,2691.6,0.74301]
[1739396922020,0.59797756,2691.7,2691.6,0.74301]
[1739396923922,1.34096756,2691.7,2691.6,0.74301]
[1739396924628,0.59797756,2691.7,2691.6,0.74301]
[1739396926833,0.00557756,2691.7,2691.6,4.00414152]
[1739396928534,0.00557756,2691.7,2691.6,4.55442711]
[1739396933334,0.00557756,2691.7,2691.6,0.54973045]
[1739396933526,0.74856756,2691.7,2691.6,0.54973045]
[1739396933731,2.39656756,2691.7,2691.6,0.54973045]
[1739396933939,1.65357756,2691.7,2691.2,3.7847]
[1739396934139,0.74306,2691.5,2691.4,0.74307]
[1739396934332,0.74306,2691.5,2691.2,3.7847]
[1739396934333,1.29204,2691.6,2691.5,0.74304]
[1739396934536,0.549,2691.6,2691.5,0.74304]
[1739396934736,1.29202,2691.6,2691.5,0.74304]
[1739396935143,0.549,2691.6,2691.5,0.74304]
[1739396936448,1.29202,2691.6,2691.5,0.74304]
[1739396936750,0.549,2691.6,2691.5,0.74304]
[1739396940658,0.74309,2691.4,2691.3,0.74308]
[1739396941054,0.549,2691.6,2691.2,3.2078]
[1739396941255,1.2904,2691.3,2691.2,3.95091]
[1739396941649,0.5473,2691.3,2691.2,3.95091]
[1739396946657,0.74307,2691.5,2691.4,0.74305]
[1739396947061,0.7431,2691.4,2691.3,0.74308]
[1739396947758,0.7431,2691.3,2691.2,3.95091]
[1739396947957,1.3431,2691.3,2691.2,3.95091]
[1739396948259,0.6,2691.3,2691.2,3.95091]
[1739396949565,1.3431,2691.3,2691.2,3.95091]
[1739396949764,0.6,2691.3,2691.2,3.95091]
[1739396950463,1.3431,2691.3,2691.2,3.95091]
[1739396951058,0.6,2691.3,2691.2,3.95091]
[1739396951257,1.3431,2691.3,2691.2,3.95091]
[1739396951456,0.6,2691.3,2691.2,3.95091]
[1739396953959,1.65257756,2691.7,2691.2,3.2078]
[1739396954168,1.31263,2691.6,2691.5,0.74304]
[1739396955068,0.74308,2691.5,2691.4,0.74305]
[1739396955458,0.5696,2691.6,2691.2,3.2078]
[1739396955958,0.5696,2691.6,2690.6,1.648]
[1739396955959,0.74323,2690.9,2690.8,0.74322]
[1739396956156,0.74322,2690.9,2690.6,3.2078]
[1739396956362,1.85782,2691.2,2690.6,3.2078]
[1739396956563,0.7432,2691.0,2690.9,0.74319]
[1739396956765,0.74322,2690.9,2690.8,0.74321]
[1739396956960,1.85782,2691.2,2690.6,3.2078]
[1739396957160,1.85782,2691.2,2690.7,0.74324]
[1739396957359,0.74323,2690.9,2690.6,3.2078]
[1739396957556,1.647,2690.9,2690.6,3.2078]
[1739396957863,1.647,2690.9,2690.3,0.00557756]
[1739396958165,0.7433,2690.6,2690.4,0.74333]
[1739396958362,1.647,2690.9,2690.3,0.00557756]
[1739396958568,0.74326,2690.8,2690.7,0.74326]
[1739396958767,0.74326,2690.8,2690.3,0.00557756]
[1739396958968,0.74326,2690.8,2690.6,0.74328]
[1739396959369,0.74328,2690.7,2690.5,0.7433]
[1739396959571,0.74328,2690.7,2690.3,0.00557756]
[1739396959572,3.26113152,2690.6,2690.3,0.00557756]
[1739396959872,0.74335,2690.4,2690.3,0.00557756]
[1739396960572,3.95115,2690.4,2690.3,0.00557756]
[1739396960771,4.01260445,2690.4,2690.3,0.00557756]
[1739396961169,4.01260445,2690.4,2689.9,5.7863986]
[1739396961170,0.74347,2690.0,2689.9,0.74348]
[1739396961671,0.74347,2690.0,2689.8,3.2078]
[1739396961971,0.74347,2690.0,2689.9,0.74348]
[1739396962169,1.648,2690.1,2689.9,0.74348]
[1739396962370,2.39145,2690.1,2689.9,0.74348]
[1739396962572,0.74346,2690.0,2689.9,0.74348]
[1739396963068,0.74348,2689.9,2689.8,3.9513]
[1739396963269,0.74347,2690.0,2689.9,0.74348]
[1739396963470,0.74348,2689.9,2689.8,3.2078]
[1739396963667,1.648,2690.1,2689.8,3.2078]
[1739396963864,0.74347,2690.0,2689.9,0.74348]
[1739396964061,1.648,2690.1,2689.7,3.21337756]
[1739396964269,3.26113152,2690.0,2689.4,3.2078]
[1739396964463,0.7436,2689.5,2689.4,3.95142]
[1739396964664,2.3916,2689.5,2689.4,3.95142]
[1739396964966,0.74363,2689.4,2689.3,0.74364]
[1739396965472,1.648,2689.5,2689.2,3.2078]
[1739396965671,6.46893152,2689.4,2689.1,0.00557756]
[1739396965874,0.74368,2689.2,2689.1,0.00557756]
[1739396966368,0.74368,2689.2,2689.1,0.74928756]
[1739396966762,0.74368,2689.2,2689.1,0.00557756]
[1739396966965,0.74367,2689.3,2689.2,0.74367]
[1739396967172,3.26113152,2689.4,2689.1,0.74926756]
[1739396967367,0.74368,2689.2,2689.1,0.74926756]
[1739396968173,0.74368,2689.2,2689.1,0.74927756]
[1739396968875,1.648,2689.5,2689.1,0.00557756]
[1739396969078,0.74366,2689.3,2689.1,0.00557756]
[1739396969376,1.648,2689.5,2689.1,0.00557756]
[1739396969571,1.648,2689.5,2689.2,0.74366]
[1739396969777,0.74366,2689.3,2689.2,0.74366]
[1739396970375,1.648,2689.5,2689.1,0.00557756]
[1739396970677,1.648,2689.4,2689.2,3.2078]
[1739396970878,1.648,2689.4,2689.3,0.74365]